bitfinex/quotes_ETHUSD_20250813
["timestamp","ask_amount","ask_price","bid_price","bid_amount"]
[1755052103744,1.8006,4598.9,4597.7,10.084122]
[1755052103928,1.8006,4598.9,4597.7,30.0]
[1755052104131,0.002,4598.8,4597.7,30.0]
[1755052104339,0.31713,4598.7,4597.7,28.926965]
[1755052104660,0.31713,4598.7,4597.6,3.415]
[1755052104661,0.002,4598.8,4598.7,3.890829]
[1755052104871,0.002,4598.8,4598.7,3.419]
[1755052105735,0.002,4598.8,4598.7,13.063229]
[1755052106045,0.002,4598.8,4598.7,11.855008]
[1755052106749,0.002,4598.8,4598.7,8.99665]
[1755052106948,0.1252,4598.8,4598.7,8.99665]
[1755052107152,0.1252,4598.8,4598.7,38.632]
[1755052107355,0.1252,4598.8,4598.7,8.633]
[1755052107673,1.9415,4598.8,4598.7,8.633]
[1755052108033,2.0503,4598.8,4598.7,8.633]
[1755052108230,0.6816,4598.8,4598.7,8.633]
[1755052109347,0.234,4598.8,4598.7,8.633]
[1755052109536,0.1108,4598.8,4598.7,8.633]
[1755052110365,0.1108,4598.8,4598.7,10.1624]
[1755052110366,0.002,4598.8,4598.7,10.1624]
[1755052110736,0.002,4598.8,4598.7,23.251794]
[1755052110932,0.002,4598.8,4598.7,8.709006]
[1755052111169,0.002,4598.8,4598.7,10.82307]
[1755052111543,0.002,4598.8,4598.7,8.631]
[1755052112149,0.002,4598.8,4598.7,35.359093]
[1755052112449,0.002,4598.8,4598.7,40.1604]
[1755052112648,0.002,4598.8,4598.7,35.886292]
[1755052112874,0.002,4598.8,4598.7,17.939225]
[1755052113170,0.002,4598.8,4598.7,9.316003]
[1755052113371,0.4647,4598.8,4598.7,8.628]
[1755052113599,0.64505,4598.8,4598.7,8.628]
[1755052113937,0.29115,4598.8,4598.7,8.628]
[1755052114582,0.002,4598.8,4598.7,38.628]
[1755052114750,0.002,4598.8,4598.7,23.062542]
[1755052114946,0.002,4598.8,4598.7,14.817233]
[1755052115740,0.002,4598.8,4598.7,15.115441]
[1755052115939,0.002,4598.8,4598.7,14.909841]
[1755052116787,0.002,4598.8,4598.7,16.489029]
[1755052117180,0.002,4598.8,4598.7,15.814706]
[1755052117579,0.002,4598.8,4598.7,5.213]
[1755052117779,0.002,4598.8,4598.7,12.059]
[1755052117962,0.002,4598.8,4598.7,5.213]
[1755052118167,2.00228,4598.8,4598.7,8.625]
[1755052118362,2.11108,4598.8,4598.7,8.625]
[1755052118892,0.70758,4598.8,4598.7,8.625]
[1755052119289,2.11108,4598.8,4598.7,8.625]
[1755052121262,0.24488,4598.8,4598.7,8.625]
[1755052121596,0.1108,4598.8,4598.7,14.095327]
[1755052121762,0.002,4598.8,4598.7,14.095327]
[1755052122294,0.002,4598.8,4598.7,12.565927]
[1755052122595,0.002,4598.8,4598.7,20.426006]
[1755052122775,0.002,4598.8,4598.7,14.573631]
[1755052123471,0.002,4598.8,4598.7,39.774841]
[1755052123694,0.002,4598.8,4598.7,40.6137]
[1755052125284,0.002,4598.8,4598.7,40.1544]
[1755052125485,0.002,4598.8,4598.7,40.6137]
[1755052125790,0.002,4598.8,4598.7,33.178857]
[1755052126005,0.002,4598.8,4598.7,33.80354609]
[1755052126202,1.23,4600.1,4598.7,33.80354609]
[1755052126388,1.23,4600.1,4598.8,39.9752327]
[1755052126588,1.23,4600.1,4600.0,0.1088]
[1755052126791,1.23,4600.1,4600.0,35.5155]
[1755052129963,1.23,4600.1,4600.0,30.1088]
[1755052130126,1.23,4600.1,4600.0,12.350114]
[1755052130455,1.23,4600.1,4600.0,2.356633]
[1755052130613,1.3388,4600.1,4600.0,3.422]
[1755052131057,1.3388,4600.1,4600.0,27.202933]
[1755052131231,1.3388,4600.1,4600.0,21.820374]
[1755052131416,1.3388,4600.1,4600.0,3.422]
[1755052131616,1.23,4600.1,4600.0,10.2742]
[1755052131838,1.23,4600.1,4600.0,10.7335]
[1755052132148,1.23,4600.1,4600.0,2.0975]
[1755052132316,1.23,4600.1,4600.0,10.7315]
[1755052132511,1.23,4600.1,4600.0,40.7315]
[1755052132746,1.232,4600.1,4600.0,40.2722]
[1755052133811,1.232,4600.1,4600.0,36.8492]
[1755052134048,1.232,4600.1,4600.0,38.7408]
[1755052134822,1.232,4600.1,4600.0,37.182587]
[1755052135044,1.232,4600.1,4600.0,36.776343]
[1755052135246,1.232,4600.1,4600.0,33.540459]
[1755052135553,1.232,4600.1,4600.0,36.381358]
[1755052135719,1.232,4600.1,4600.0,28.318391]
[1755052135920,1.232,4600.1,4600.0,20.971486]
[1755052136120,1.232,4600.1,4600.0,21.646106]
[1755052136551,1.6947,4600.1,4600.0,11.587147]
[1755052136935,1.6947,4600.1,4600.0,17.079658]
[1755052137261,1.6947,4600.1,4600.0,10.936508]
[1755052137422,1.87505,4600.1,4600.0,8.629]
[1755052137623,3.27855,4600.1,4600.0,8.629]
[1755052137853,3.27855,4600.1,4600.0,8.627]
[1755052138723,1.41235,4600.1,4600.0,8.627]
[1755052138941,1.87505,4600.1,4600.0,8.627]
[1755052139124,1.232,4600.1,4600.0,28.168974]
[1755052139322,1.232,4600.1,4600.0,15.317287]
[1755052140262,1.232,4600.1,4600.0,40.0805]
[1755052140430,1.232,4600.1,4600.0,40.5512]
[1755052140631,1.232,4600.1,4600.0,40.0805]
[1755052140841,1.232,4600.1,4600.0,38.627]
[1755052141045,1.232,4600.1,4600.0,40.0805]
[1755052141332,1.232,4600.1,4600.0,40.66]
[1755052141528,1.232,4600.1,4600.0,40.1893]
[1755052141848,1.232,4600.1,4600.0,24.112028]
[1755052142361,1.232,4600.1,4600.0,38.638]
[1755052142580,1.232,4600.1,4600.0,40.0915]
[1755052142878,1.232,4600.1,4600.0,40.5622]
[1755052143179,1.232,4600.1,4600.0,43.52113431]
[1755052143340,1.232,4600.1,4600.0,43.23284574]
[1755052143542,1.232,4600.1,4600.0,42.95411304]
[1755052144165,1.232,4600.1,4600.0,12.95411304]
[1755052144368,1.232,4600.1,4600.0,40.7802]
[1755052144674,1.232,4600.1,4600.0,40.5672]
[1755052145854,1.232,4600.1,4600.0,37.1352]
[1755052146055,1.232,4600.1,4600.0,40.5662]
[1755052146256,1.232,4600.1,4600.0,42.74011304]
[1755052146450,1.232,4600.1,4600.0,40.5662]
[1755052146983,1.232,4600.1,4600.0,36.6645]
[1755052147185,1.232,4600.1,4600.0,40.0955]
[1755052147400,1.232,4600.1,4600.0,35.211]
[1755052147704,1.232,4600.1,4600.0,38.641]
[1755052148079,1.232,4600.1,4600.0,38.64]
[1755052148793,1.232,4600.1,4600.0,40.0935]
[1755052148975,1.232,4600.1,4600.0,38.64]
[1755052149747,1.232,4600.1,4600.0,35.211]
[1755052149954,1.232,4600.1,4600.0,35.747622]
[1755052150349,1.232,4600.1,4600.0,38.638]
[1755052150669,1.232,4600.1,4600.0,32.67564]
[1755052151069,1.232,4600.1,4600.0,33.67564]
[1755052151374,1.232,4600.1,4600.0,36.211]
[1755052151583,1.8102,4600.1,4600.0,19.106534]
[1755052151784,1.687,4600.1,4600.0,19.106534]
[1755052152494,1.687,4600.1,4600.0,9.636]
[1755052152884,1.687,4600.1,4600.0,29.623636]
[1755052153194,1.687,4600.1,4600.0,10.69246]
[1755052153381,1.3408,4600.1,4600.0,14.11746]
[1755052153585,1.7958,4600.1,4600.0,19.73641]
[1755052153895,1.232,4600.1,4600.0,39.7448]
[1755052154069,1.232,4600.1,4600.0,41.1983]
[1755052154588,1.232,4600.1,4600.0,41.669]
[1755052154992,1.232,4600.1,4600.0,20.649152]
[1755052155182,1.687,4600.1,4600.0,19.850065]
[1755052155385,1.86658,4600.1,4600.0,10.863341]
[1755052155595,3.37638,4600.1,4600.0,14.291341]
[1755052155807,3.37638,4600.1,4600.0,15.016372]
[1755052155990,3.37638,4600.1,4600.0,9.724325]
[1755052156291,3.37638,4600.1,4600.0,13.152325]
[1755052158268,1.86658,4600.1,4600.0,13.152325]
[1755052158689,1.86658,4600.1,4600.0,4.513325]
[1755052158970,1.86658,4600.1,4600.0,13.147325]
[1755052160280,3.37638,4600.1,4600.0,13.145325]
[1755052161226,3.37638,4600.1,4600.0,13.399169]
[1755052161798,3.37638,4600.1,4600.0,12.325169]
[1755052162667,1.86658,4600.1,4600.0,12.325169]
[1755052162863,1.86658,4600.1,4600.0,5.211]
[1755052163073,0.186658,4600.0,4599.4,5.211]
[1755052163304,1.9648,4599.9,4599.4,5.211]
[1755052163462,0.186658,4600.0,4599.5,3.421]
[1755052164268,0.455,4599.9,4599.5,3.421]
[1755052164459,0.186658,4600.0,4599.5,3.421]
[1755052164665,0.455,4599.8,4599.5,3.421]
[1755052165167,1.232,4600.1,4599.8,16.084743]
[1755052165406,0.455,4600.0,4599.9,3.427]
[1755052165616,0.77468,4600.0,4599.4,5.211]
[1755052165780,2.28448,4600.0,4599.5,7.092]
[1755052165986,0.31968,4600.0,4599.6,8.494007]
[1755052166203,1.232,4600.1,4599.7,3.428]
[1755052166367,1.232,4600.1,4599.8,9.380793]
[1755052166568,1.687,4600.1,4599.9,3.428]
[1755052166901,1.232,4600.1,4599.9,3.428]
[1755052167893,1.687,4600.1,4599.9,3.428]
[1755052168212,0.1687,4600.0,4599.9,3.428]
[1755052170814,0.6099,4600.0,4599.9,3.428]
[1755052171015,0.1687,4600.0,4599.9,3.428]
[1755052171219,1.232,4600.1,4599.9,3.428]
[1755052171579,1.232,4600.1,4600.0,13.332291]
[1755052172212,1.232,4600.1,4600.0,22.147249]
[1755052172418,1.232,4600.1,4600.0,16.59825]
[1755052173034,1.3408,4600.1,4600.0,16.59825]
[1755052173193,1.3408,4600.1,4600.0,19.648792]
[1755052173393,1.3408,4600.1,4600.0,10.370462]
[1755052173593,1.782,4600.1,4599.4,5.211]
[1755052173925,1.9602,4600.1,4599.5,3.112779]
[1755052174086,1.4102,4600.1,4599.6,3.419]
[1755052174290,0.4412,4600.0,4599.6,3.419]
[1755052174491,0.1088,4599.7,4599.6,3.419]
[1755052174687,0.55,4599.7,4599.6,3.419]
[1755052175133,0.55,4599.7,4599.6,3.418]
[1755052175134,2.019,4599.7,4599.6,3.418]
[1755052175317,2.2209,4599.7,4599.4,5.211]
[1755052175490,0.4412,4599.6,4599.5,3.418]
[1755052176944,0.4412,4599.6,4599.4,5.211]
[1755052177119,0.4412,4599.6,4599.5,3.417]
[1755052178736,0.4412,4599.6,4599.4,5.211]
[1755052178899,0.1088,4599.7,4599.4,5.211]
[1755052179093,0.4412,4599.5,4599.4,5.211]
[1755052179295,0.4412,4599.5,4599.4,8.625]
[1755052179496,0.4412,4599.5,4599.4,8.624]
[1755052179805,1.9102,4599.5,4599.4,8.624]
[1755052180024,2.1121,4599.5,4599.4,8.624]
[1755052180227,0.2019,4599.5,4599.4,8.624]
[1755052180431,0.1088,4599.7,4599.4,8.624]
[1755052181152,0.1088,4599.7,4599.5,3.414]
[1755052181828,0.55,4599.7,4599.5,3.414]
[1755052183823,0.55,4599.7,4599.4,5.211]
[1755052184029,0.55,4599.7,4599.5,3.408]
[1755052186422,0.1088,4599.7,4599.5,3.408]
[1755052186623,0.4412,4599.6,4599.5,3.408]
[1755052187947,0.4412,4599.6,4599.4,5.211]
[1755052188140,0.4412,4599.6,4599.5,3.405]
[1755052188465,0.1088,4599.7,4599.5,3.405]
[1755052188692,0.1088,4599.7,4599.4,5.211]
[1755052188828,0.55,4599.4,4599.0,5.212]
[1755052189026,2.0202,4599.3,4599.1,3.403]
[1755052189262,1.9102,4599.2,4599.1,3.403]
[1755052189462,2.019,4599.2,4599.1,3.403]
[1755052190251,4.19329118,4599.2,4599.1,3.403]
[1755052190562,2.019,4599.2,4599.1,3.403]
[1755052190754,2.2319,4599.2,4599.1,3.403]
[1755052191065,2.2319,4599.2,4599.0,5.212]
[1755052191289,1.9102,4599.1,4599.0,5.212]
[1755052191665,1.9102,4599.1,4598.9,5.212]
[1755052191666,0.55,4599.0,4598.9,5.212]
[1755052191968,3.13062067,4599.0,4598.9,5.212]
[1755052192261,3.13062067,4599.0,4598.9,8.613]
[1755052193148,2.569,4599.0,4598.9,8.613]
[1755052193474,0.1088,4599.0,4598.9,8.613]
[1755052193645,0.1088,4599.0,4598.9,10.111]
[1755052193977,0.1088,4599.0,4598.9,10.5703]
[1755052195458,0.1088,4599.0,4598.9,13.906317]
[1755052195766,0.1088,4599.0,4598.9,12.3772]
[1755052196078,0.1088,4599.0,4598.9,12.1452]
[1755052196276,0.1088,4599.0,4598.9,11.0742]
[1755052196489,0.1088,4599.0,4598.9,10.111]
[1755052196769,0.1088,4599.0,4598.9,12.555882]
[1755052197553,0.1088,4599.0,4598.9,10.111]
[1755052197985,0.1088,4599.0,4598.9,11.012882]
[1755052198288,0.1088,4599.0,4598.9,10.780882]
[1755052198585,0.1088,4599.0,4598.9,8.613]
[1755052198991,0.55,4599.0,4598.9,8.608]
[1755052199190,0.55,4599.0,4598.9,5.212]
[1755052199403,2.7457,4599.0,4598.9,8.608]
[1755052200260,2.7457,4599.0,4598.9,5.213]
[1755052201467,2.7457,4599.0,4598.9,8.609]
[1755052202089,1.3019,4599.0,4598.9,8.609]
[1755052202280,0.55,4598.9,4598.8,0.001]
[1755052202478,2.91680486,4598.9,4598.8,0.001]
[1755052202695,1.47300486,4598.9,4598.8,0.001]
[1755052202898,0.981,4598.9,4598.8,0.001]
[1755052203608,0.981,4598.9,4598.8,3.394]
[1755052203779,0.1088,4599.0,4598.8,4.8513]
[1755052203985,0.1088,4599.0,4598.9,1.9045]
[1755052205403,0.1088,4599.0,4598.9,20.627433]
[1755052205584,0.1088,4599.0,4598.9,12.09016]
[1755052205916,0.1088,4599.0,4598.9,3.9385]
[1755052206218,0.1088,4599.0,4598.9,4.8374]
[1755052206397,0.1088,4599.0,4598.9,1.9045]
[1755052206574,0.1088,4599.0,4598.9,1.4573]
[1755052206773,0.1088,4599.0,4598.8,3.394]
[1755052206969,0.1088,4599.0,4598.9,3.393]
[1755052207582,1.0898,4599.0,4598.9,3.393]
[1755052207789,2.64258,4599.0,4598.9,3.393]
[1755052208005,2.64258,4599.0,4598.8,0.001]
[1755052208318,2.72457487,4598.6,4598.5,0.001]
[1755052208540,0.55,4598.3,4597.8,5.213]
[1755052208836,0.1088,4598.2,4597.8,5.213]
[1755052209126,0.79316,4598.2,4597.8,5.213]
[1755052209482,0.79316,4598.2,4598.1,3.393]
[1755052210975,0.55,4598.1,4597.8,5.213]
[1755052211180,2.4248,4598.1,4597.8,5.213]
[1755052211392,2.4248,4598.0,4597.8,5.213]
[1755052211914,0.55,4597.9,4597.6,0.001]
[1755052212101,0.55,4597.7,4597.1,5.213]
[1755052212418,0.431,4597.6,4597.2,3.39]
[1755052212716,0.431,4597.5,4597.2,3.39]
[1755052213011,0.1088,4597.3,4597.2,3.39]
[1755052213322,0.5398,4597.3,4597.2,3.39]
[1755052214211,0.1088,4597.3,4597.2,5.2945]
[1755052214525,0.24248,4597.8,4597.2,5.2945]
[1755052214526,0.1088,4598.1,4597.3,0.6374148]
[1755052214720,1.663,4600.1,4597.4,33.8362]
[1755052214721,0.1088,4598.3,4597.4,33.8362]
[1755052214888,0.1088,4598.3,4597.7,0.1088]
[1755052215092,0.1088,4598.3,4597.8,35.2985]
[1755052215314,0.1088,4598.3,4597.9,8.378385]
[1755052215524,0.1088,4598.3,4598.0,6.14515]
[1755052215829,0.1088,4598.3,4598.1,4.269]
[1755052216122,0.1088,4598.3,4598.1,6.1735]
[1755052216295,0.1088,4598.3,4598.2,3.395]
[1755052216489,0.431,4598.8,4598.2,3.395]
[1755052216696,0.1088,4598.3,4598.2,3.395]
[1755052217299,0.5398,4598.3,4598.2,3.395]
[1755052217761,1.0898,4598.3,4598.2,3.395]
[1755052217955,1.19878,4598.3,4598.2,3.395]
[1755052218159,1.19878,4598.3,4597.1,5.213]
[1755052218345,2.53378,4598.3,4597.2,3.395]
[1755052218872,0.1088,4597.3,4597.2,3.395]
[1755052219057,0.1088,4597.3,4597.2,4.8523]
[1755052219620,0.1088,4597.7,4597.2,35.59973498]
[1755052219824,0.1088,4597.7,4597.3,30.0]
[1755052220137,0.1088,4597.7,4597.3,31.9045]
[1755052220333,0.1088,4598.2,4597.5,0.1088]
[1755052220540,0.1088,4598.2,4597.6,35.3075]
[1755052220741,0.1088,4598.2,4597.7,31.9045]
[1755052220937,0.1088,4598.2,4597.8,33.403]
[1755052221155,0.431,4600.2,4597.9,30.0]
[1755052221326,0.1088,4598.8,4598.1,2.28358657]
[1755052221524,0.1088,4598.8,4598.2,35.3085]
[1755052221728,0.1088,4598.8,4598.3,30.0]
[1755052221963,0.1088,4598.8,4598.4,3.404]
[1755052222140,0.1088,4598.8,4598.5,28.275573]
[1755052222349,0.1088,4598.8,4598.6,3.404]
[1755052222675,6.152,4600.5,4598.6,3.404]
[1755052222676,0.1088,4599.0,4598.7,30.0]
[1755052222856,0.1088,4599.0,4598.8,5.3075]
[1755052223050,0.1088,4599.0,4598.9,30.0]
[1755052223362,0.1088,4599.0,4598.9,31.9045]
[1755052223558,0.1088,4599.0,4598.9,25.06964]
[1755052223754,6.152,4600.5,4598.9,16.35569]
[1755052223927,6.152,4600.5,4599.0,33.403]
[1755052224126,6.152,4600.5,4599.1,31.9045]
[1755052224328,6.152,4600.5,4599.2,37.304282]
[1755052224522,1.3408,4600.1,4599.4,0.1088]
[1755052224759,1.3408,4600.1,4599.5,6.888]
[1755052224760,1.36608,4600.1,4599.5,6.888]
[1755052224966,1.36608,4600.1,4599.6,3.404]
[1755052225369,0.1088,4599.7,4599.6,3.404]
[1755052225777,0.1088,4599.7,4599.6,5.3085]
[1755052226157,1.232,4600.1,4599.6,32.11914]
[1755052226375,0.1088,4600.0,4599.7,31.10654]
[1755052226537,0.1088,4600.0,4599.8,21.795422]
[1755052226739,0.1088,4600.0,4599.9,19.35331]
[1755052227069,0.1088,4600.0,4599.9,7.550111]
[1755052227269,0.1088,4600.0,4599.9,7.546321]
[1755052228181,0.1088,4600.0,4599.9,11.715695]
[1755052228473,0.1088,4600.0,4599.9,10.000179]
[1755052228649,0.1088,4600.0,4599.9,10.447379]
[1755052229087,0.1088,4600.0,4599.9,10.000179]
[1755052229290,0.1088,4600.0,4599.9,8.995816]
[1755052230193,0.1088,4600.0,4599.9,14.993309]
[1755052230373,0.1088,4600.0,4599.9,35.2809]
[1755052230554,1.232,4600.1,4599.9,35.2809]
[1755052230755,1.232,4600.1,4600.0,31.8769]
[1755052230957,1.232,4600.1,4600.0,30.696611]
[1755052231254,1.232,4600.1,4600.0,13.26487804]
[1755052231459,1.232,4600.1,4600.0,13.69297804]
[1755052231701,1.232,4600.1,4600.0,13.578047]
[1755052232047,1.232,4600.1,4600.0,11.701147]
[1755052232302,1.232,4600.1,4600.0,2.786]
[1755052232504,1.232,4600.1,4600.0,3.405]
[1755052232505,1.464,4600.1,4600.0,3.405]
[1755052232742,1.3408,4600.1,4600.0,35.2819]
[1755052233008,1.232,4600.1,4600.0,35.2819]
[1755052233311,6.2608,4600.5,4600.0,35.2819]
[1755052233312,6.152,4600.5,4600.0,35.3907]
[1755052233485,6.152,4600.5,4600.4,0.1088]
[1755052233676,6.152,4600.5,4600.4,33.5158]
[1755052233882,6.152,4600.5,4600.4,35.3927]
[1755052234414,6.152,4600.5,4600.4,31.010211]
[1755052234909,6.152,4600.5,4600.4,35.3927]
[1755052235675,6.152,4600.5,4600.4,5.3927]
[1755052238017,6.152,4600.5,4600.4,35.3927]
[1755052239685,6.152,4600.5,4600.4,28.616908]
[1755052239894,6.152,4600.5,4600.4,28.845449]
[1755052240226,6.152,4600.5,4600.4,23.412683]
[1755052240430,6.152,4600.5,4600.4,16.805118]
[1755052240640,6.152,4600.5,4600.4,14.520652]
[1755052240806,6.152,4600.5,4600.4,9.438096]
[1755052241007,6.152,4600.5,4600.4,5.149394]
[1755052241329,6.152,4600.5,4600.4,3.401]
[1755052241631,6.152,4600.5,4600.4,7.413064]
[1755052241808,6.152,4600.5,4600.4,34.8498]
[1755052242532,6.152,4600.5,4600.4,35.2779]
[1755052242854,6.152,4600.5,4600.4,35.6039]
[1755052242999,6.152,4600.5,4600.4,35.1758]
[1755052243344,6.152,4600.5,4600.4,35.6039]
[1755052244139,6.152,4600.5,4600.4,33.93041]
[1755052244336,6.152,4600.5,4600.4,30.687834]
[1755052244644,6.152,4600.5,4600.4,32.136634]
[1755052244844,6.152,4600.5,4600.4,5.1748]
[1755052245196,5.14780836,4600.5,4600.4,5.1748]
[1755052245399,5.14780836,4600.5,4600.4,3.5088]
[1755052245821,5.14780836,4600.5,4600.4,33.5088]
[1755052246023,5.14780836,4600.5,4600.4,34.9576]
[1755052247238,5.14780836,4600.5,4600.4,31.5576]
[1755052247429,5.14780836,4600.5,4600.4,34.9556]
[1755052248031,5.14780836,4600.5,4600.4,33.5068]
[1755052248206,5.14780836,4600.5,4600.4,18.820035]
[1755052248405,5.14780836,4600.5,4600.4,11.35972]
[1755052249022,5.14780836,4600.5,4600.4,33.5048]
[1755052249740,5.60440836,4600.5,4600.4,13.925318]
[1755052249911,5.60440836,4600.5,4600.4,24.843347]
[1755052250112,5.60440836,4600.5,4600.4,21.448347]
[1755052250308,5.14780836,4600.5,4600.4,24.841347]
[1755052250514,5.14780836,4600.5,4600.4,21.448347]
[1755052250816,5.14780836,4600.5,4600.4,24.841347]
[1755052251022,5.14780836,4600.5,4600.4,33.164989]
[1755052251230,5.14780836,4600.5,4600.4,33.5018]
[1755052252646,5.14780836,4600.5,4600.4,34.9506]
[1755052253246,5.14780836,4600.5,4600.4,35.3787]
[1755052254133,5.14780836,4600.5,4600.4,34.9506]
[1755052254448,5.14780836,4600.5,4600.4,35.3787]
[1755052258178,5.14780836,4600.5,4600.4,40.5887]
[1755052258676,5.14780836,4600.5,4600.4,37.1957]
[1755052258840,5.14780836,4600.5,4600.4,40.1556]
[1755052261497,5.14780836,4600.5,4600.4,40.3728]
[1755052261667,5.14780836,4600.5,4600.4,40.8333]
[1755052261855,9.842,4601.0,4600.4,40.8333]
[1755052262193,74.33489689,4601.1,4601.0,2.39064055]
[1755052262352,6.15,4601.7,4601.4,0.76719999]
[1755052262673,5.88946466,4601.7,4601.6,2.94035715]
[1755052262876,1.16246689,4602.0,4601.8,2.3902627]
[1755052263063,0.003,4603.4,4602.2,0.21719999]
[1755052263268,0.003,4603.4,4603.2,2.9396018]
[1755052263442,0.98399388,4603.5,4603.4,2.38950742]
[1755052263642,0.98399388,4603.5,4603.4,30.2172]
[1755052263841,0.98399388,4603.5,4603.4,11.719069]
[1755052264474,2.86689388,4603.5,4603.4,18.943589]
[1755052264642,2.86689388,4603.5,4603.4,13.079702]
[1755052264841,3.64558327,4603.5,4602.3,0.2172]
[1755052265198,1.8829,4603.4,4602.5,0.2172]
[1755052265493,1.8829,4603.4,4602.6,17.244517]
[1755052265699,1.8829,4603.3,4602.7,2.67847]
[1755052265974,1.4117,4603.2,4602.7,6.09247]
[1755052266173,1.77625833,4603.2,4602.8,30.0]
[1755052266380,0.4712,4603.1,4602.9,3.416]
[1755052266556,1.8829,4603.1,4603.0,30.0]
[1755052266755,0.36455833,4603.2,4603.0,28.790123]
[1755052266954,1.76268327,4603.5,4603.1,8.715103]
[1755052267154,1.76268327,4603.5,4603.2,8.890099]
[1755052267342,1.76268327,4603.5,4603.2,3.415]
[1755052267343,1.8829,4603.4,4603.2,3.415]
[1755052267542,1.76268327,4603.5,4603.2,3.415]
[1755052267756,1.8829,4603.3,4603.2,3.415]
[1755052267946,2.24745833,4603.3,4603.2,3.414]
[1755052268174,2.24745833,4603.3,4603.2,2.7793]
[1755052268443,2.24745833,4603.3,4603.2,3.414]
[1755052269289,1.8829,4603.3,4603.2,3.414]
[1755052269457,0.98399388,4603.5,4603.2,3.414]
[1755052269646,0.98399388,4603.5,4603.2,33.414]
[1755052269841,0.98399388,4603.5,4603.3,30.0]
[1755052270044,0.98399388,4603.5,4603.4,3.413]
[1755052270316,0.98399388,4603.5,4603.4,33.413]
[1755052270641,2.86689388,4603.5,4603.4,33.413]
[1755052271154,2.86689388,4603.5,4603.4,7.713977]
[1755052271396,3.64558327,4603.5,4603.4,8.579183]
[1755052271547,3.64558327,4603.5,4603.4,3.411]
[1755052271855,3.64558327,4603.5,4602.6,5.208]
[1755052272058,1.8829,4603.4,4602.6,5.208]
[1755052272379,1.9917,4603.3,4602.7,6.464262]
[1755052272579,1.9917,4603.3,4602.8,17.479722]
[1755052272783,1.9917,4603.3,4602.9,3.411]
[1755052272946,1.9917,4603.3,4603.0,30.0]
[1755052272947,0.4712,4603.3,4603.0,30.0]
[1755052273145,0.4712,4603.3,4603.1,3.414]
[1755052273346,0.4712,4603.3,4603.2,30.0]
[1755052273548,0.98399388,4603.5,4603.2,30.0]
[1755052273747,0.98399388,4603.5,4603.3,3.414]
[1755052273977,0.98399388,4603.5,4603.3,7.090924]
[1755052274197,1.8829,4603.4,4603.3,3.414]
[1755052274357,1.8829,4603.4,4603.3,7.633]
[1755052274696,1.8829,4603.4,4603.3,3.412]
[1755052277359,1.8829,4603.4,4603.0,0.1088]
[1755052277591,1.58527327,4603.5,4603.3,5.208]
[1755052277885,0.65052733,4603.4,4603.3,5.208]
[1755052278086,0.75932733,4603.4,4603.3,8.617]
[1755052278385,1.9917,4603.4,4603.3,8.617]
[1755052279385,1.9917,4603.4,4603.3,5.208]
[1755052279686,1.9917,4603.4,4603.3,8.616]
[1755052281467,1.9917,4603.4,4602.6,0.1088]
[1755052281762,1.9917,4603.4,4603.3,5.208]
[1755052281963,2.78126939,4603.4,4603.3,8.612]
[1755052282386,2.78126939,4603.4,4603.3,38.612]
[1755052282589,1.9917,4603.4,4603.3,38.612]
[1755052282756,0.58,4603.4,4603.3,38.612]
[1755052283152,1.9917,4603.4,4603.3,38.612]
[1755052283484,1.9917,4603.4,4603.3,16.145726]
[1755052283686,1.9917,4603.4,4603.3,11.75135]
[1755052284400,1.9917,4603.4,4603.3,8.612]
[1755052284554,1.9917,4603.4,4603.3,12.638338]
[1755052284753,1.9917,4603.4,4603.3,11.926338]
[1755052285468,1.9917,4603.4,4603.3,4.026338]
[1755052285765,2.78126939,4603.4,4603.3,5.207]
[1755052285966,2.78126939,4603.4,4603.3,8.607]
[1755052290469,2.78126939,4603.4,4603.3,5.207]
[1755052290660,2.78126939,4603.4,4602.8,5.208]
[1755052290892,2.57302633,4603.3,4602.9,3.396]
[1755052291196,2.1965,4603.2,4602.9,3.396]
[1755052291361,0.1088,4603.0,4602.9,3.396]
[1755052291556,2.3053,4603.0,4602.9,3.396]
[1755052291796,2.57348263,4603.0,4602.9,3.396]
[1755052293287,2.57348263,4603.0,4602.9,8.604]
[1755052293736,5.29597882,4603.0,4602.9,5.208]
[1755052294012,0.55,4602.9,4600.9,0.1088]
[1755052294215,0.1088,4601.6,4601.2,13.510752]
[1755052294385,0.1088,4601.6,4601.3,18.506001]
[1755052294715,0.1088,4601.6,4601.4,6.571501]
[1755052294913,0.1088,4601.6,4600.9,0.1088]
[1755052294914,0.5738,4601.6,4600.9,0.1088]
[1755052295121,0.5738,4601.6,4601.2,6.63155]
[1755052295287,0.5738,4601.6,4601.3,7.44355]
[1755052295487,0.1088,4601.6,4601.4,8.604]